bitfinex-derivatives/quotes_ETHF0:USTF0_20250612
["timestamp","ask_amount","ask_price","bid_price","bid_amount"]
[1749756829710,0.6061,2736.6,2736.5,0.73065]
[1749756831014,3.93834,2736.9,2736.8,0.73057]
[1749756831312,0.7306,2736.8,2736.7,0.73057]
[1749756831709,3.93836,2736.9,2736.8,0.73057]
[1749756831917,0.73064,2736.6,2736.5,0.73062]
[1749756832114,3.2078,2736.9,2736.4,2.43648]
[1749756832413,3.93837,2736.9,2736.8,0.73057]
[1749756832712,3.2078,2736.9,2736.8,0.73057]
[1749756834313,3.2078,2736.9,2736.8,1.33667]
[1749756834510,0.00547375,2737.2,2737.1,0.73049]
[1749756834716,3.2078,2737.8,2737.1,3.93829]
[1749756834913,3.2078,2737.8,2737.5,0.73036]
[1749756834914,0.73038,2737.6,2737.5,0.73036]
[1749756835213,3.2078,2737.8,2737.2,3.11573]
[1749756835414,0.73038,2737.6,2737.5,0.73036]
[1749756835812,0.0914,2737.7,2737.6,0.73035]
[1749756837409,0.0914,2737.7,2737.6,1.37205]
[1749756839917,0.13517375,2737.8,2737.6,1.37205]
[1749756839918,0.13517375,2737.8,2737.7,0.73033]
[1749756840215,3.2078,2738.6,2738.5,0.7301]
[1749756840408,0.73013,2738.5,2738.4,0.73012]
[1749756841217,3.2078,2738.6,2738.1,1.82555]
[1749756841418,0.73013,2738.5,2738.4,0.73011]
[1749756841815,3.2078,2738.6,2738.5,0.73011]
[1749756842013,3.2078,2738.6,2738.2,2.5135]
[1749756842323,0.73016,2738.4,2738.3,0.73014]
[1749756842914,0.73011,2738.5,2738.4,0.73011]
[1749756843423,3.2078,2738.6,2738.2,1.9122]
[1749756843617,0.73012,2738.5,2738.2,1.9122]
[1749756843816,0.73012,2738.5,2738.4,0.73014]
[1749756844012,0.73012,2738.5,2737.9,3.2078]
[1749756844013,1.82529,2738.5,2737.9,3.2078]
[1749756844219,0.73025,2738.0,2737.9,3.93806]
[1749756844520,0.73025,2738.0,2737.7,0.6222]
[1749756844521,0.73024,2738.1,2738.0,0.73022]
[1749756844718,0.73025,2738.0,2737.9,0.73025]
[1749756845020,0.73024,2738.1,2738.0,0.73024]
[1749756845624,0.6287,2738.3,2738.2,0.73019]
[1749756845927,0.73016,2738.4,2738.3,0.73014]
[1749756846116,0.73012,2738.5,2738.4,0.73011]
[1749756846317,3.9999172,2738.6,2738.5,0.73011]
[1749756847226,0.0620172,2738.6,2738.5,0.73011]
[1749756847619,0.0620172,2738.6,2738.5,1.97311]
[1749756848021,0.73009,2738.6,2738.5,1.97311]
[1749756848318,0.73011,2738.5,2738.4,3.93792]
[1749756849121,0.0620172,2738.6,2738.1,0.6241]
[1749756849323,0.73019,2738.2,2738.1,1.35428]
[1749756849518,1.32132,2738.5,2738.4,0.73014]
[1749756849724,0.73018,2738.4,2738.3,0.73014]
[1749756850725,0.73019,2738.2,2738.1,3.93798]
[1749756852024,0.73019,2738.4,2738.3,0.73014]
[1749756852727,0.73019,2738.3,2738.2,0.73018]
[1749756853332,0.73016,2738.4,2738.3,0.73014]
[1749756853921,0.5912,2738.5,2738.4,0.73014]
[1749756854226,1.34211,2738.6,2738.5,0.73011]
[1749756855830,1.34211,2738.6,2738.3,3.11181]
[1749756855831,0.73014,2738.5,2738.4,0.73013]
[1749756858529,1.82534,2738.5,2738.1,3.2078]
[1749756858831,1.82549,2738.2,2737.7,9.1828]
[1749756859023,1.82562,2738.0,2737.4,3.2078]
[1749756859218,0.73038,2737.5,2737.4,3.2078]
[1749756859625,0.73041,2737.4,2737.3,0.73588375]
[1749756860423,0.7304,2737.5,2737.4,0.73038]
[1749756861426,0.73041,2737.4,2737.3,0.00547375]
[1749756862626,0.6073,2737.6,2737.5,0.73038]
[1749756862833,0.6073,2737.6,2737.5,3.93818]
[1749756863030,0.6499,2737.9,2737.5,3.93818]
[1749756863331,0.5961,2738.0,2737.9,0.73027]
[1749756864731,1.32635,2738.0,2737.9,0.73027]
[1749756866931,0.5961,2738.0,2737.9,0.73027]
[1749756867731,5.03313,2738.5,2737.8,1.82576]
[1749756868034,0.73022,2738.2,2738.1,0.73018]
[1749756868531,0.73022,2738.2,2737.8,1.82576]
[1749756868532,0.73026,2738.1,2738.0,0.73023]
[1749756868830,0.7302,2738.2,2738.1,0.73017]
[1749756869025,5.03329,2738.2,2737.6,9.8109]
[1749756869232,0.73032,2737.8,2737.7,0.73029]
[1749756870831,0.73028,2737.9,2737.8,0.73026]
[1749756871030,0.73029,2738.0,2737.9,0.73025]
[1749756871234,1.93093,2738.1,2738.0,0.73025]
[1749756871431,0.73023,2738.1,2738.0,0.73025]
[1749756872537,0.73032,2737.9,2737.8,0.73027]
[1749756873036,0.73027,2738.0,2737.9,0.73023]
[1749756873239,9.91303,2738.2,2738.1,0.73022]
[1749756873633,9.1828,2738.2,2738.1,0.73022]
[1749756873835,3.2078,2738.2,2738.1,0.73022]
[1749756874033,3.93799,2738.2,2738.1,0.73022]
[1749756876232,3.2078,2738.2,2738.1,0.73022]
[1749756877041,3.93799,2738.2,2738.1,0.73022]
[1749756877643,0.7302,2738.3,2738.2,0.73017]
[1749756878139,0.73027,2737.9,2737.8,3.2078]
[1749756878337,0.73034,2737.8,2737.7,0.73031]
[1749756882046,0.73038,2737.5,2737.4,6.70536]
[1749756882239,0.73037,2737.6,2737.5,0.73034]
[1749756884459,2.58535,2737.7,2737.6,0.73035]
[1749756884864,1.33015,2737.7,2737.6,0.73035]
[1749756886661,0.5998,2737.7,2737.6,0.73035]
[1749756886862,0.5998,2737.7,2737.5,0.73036]
[1749756887060,0.7304,2737.6,2737.5,0.73036]
[1749756887263,1.33014,2737.7,2737.6,0.73035]
[1749756889862,0.7304,2737.6,2737.5,0.73036]
[1749756890063,0.73041,2737.4,2737.3,0.00547375]
[1749756890259,0.73041,2737.4,2737.3,0.73590375]
[1749756891355,0.73041,2737.4,2737.3,0.00547375]
[1749756891956,2.52301,2737.4,2737.3,0.00547375]
[1749756893266,1.82629,2737.0,2736.6,0.73058]
[1749756893468,0.73059,2736.8,2736.7,0.73057]
[1749756893769,0.73062,2736.6,2736.5,3.2078]
[1749756894065,0.73062,2736.6,2736.5,3.93845]
[1749756894367,0.73061,2736.7,2736.6,0.73059]
[1749756894571,0.73064,2736.6,2736.5,0.73062]
[1749756894871,0.73067,2736.5,2736.4,0.73065]
[1749756895964,0.73067,2736.4,2736.3,0.73614375]
[1749756896166,0.73067,2736.4,2736.3,0.00547375]
[1749756896368,5.0,2736.4,2735.5,3.2078]
[1749756896568,0.73094,2735.4,2735.2,6.09417298]
[1749756896767,0.73095,2735.4,2735.3,0.73095]
[1749756896967,7.80215,2735.8,2735.4,0.73093]
[1749756896968,0.73093,2735.5,2735.4,0.73093]
[1749756897168,0.73095,2735.4,2735.3,0.73095]
[1749756897368,0.73096,2735.4,2735.3,0.73096]
[1749756897776,0.73092,2735.5,2735.4,0.73092]
[1749756898273,0.73095,2735.4,2735.3,0.73095]
[1749756899575,1.82733,2735.5,2734.8,3.8471]
[1749756899769,0.73107,2735.0,2734.9,0.73105]
[1749756900273,0.73103,2735.1,2735.0,0.73102]
[1749756900470,0.73107,2735.0,2734.9,0.73106]
[1749756900671,0.73105,2735.1,2735.0,0.73102]
[1749756901076,0.73106,2735.0,2734.9,0.73105]
[1749756901277,1.82769,2734.9,2734.3,0.6147]
[1749756901581,0.73122,2734.4,2734.3,0.73121]
[1749756901774,0.73122,2734.4,2734.2,3.2078]
[1749756901775,2.5194,2734.9,2734.2,3.2078]
[1749756901972,0.73111,2734.8,2734.7,0.7311]
[1749756902171,0.73116,2734.7,2734.6,0.73114]
[1749756902376,0.73121,2734.4,2734.3,1.97592]
[1749756902571,7.2411,2734.9,2734.3,1.2447]
[1749756902771,0.73118,2734.6,2734.5,0.73117]
[1749756902971,0.7312,2734.5,2734.4,0.73119]
[1749756903274,0.73117,2734.6,2734.5,0.73115]
[1749756903777,0.73119,2734.5,2734.4,0.73118]
[1749756904176,0.73111,2734.8,2734.7,0.7311]
[1749756904379,0.73115,2734.7,2734.6,0.73114]
[1749756904674,8.4646,2734.9,2734.2,3.2078]
[1749756904872,0.73122,2734.4,2734.3,0.73123]
[1749756905069,0.73119,2734.5,2734.4,0.73119]
[1749756905269,1.82776,2734.8,2734.3,0.73123]
[1749756905475,0.73121,2734.4,2734.3,0.73123]
[1749756905877,6.7092,2734.5,2734.4,0.73121]
[1749756906269,0.73122,2734.4,2734.3,0.73122]
[1749756906481,5.978,2734.5,2734.2,3.93904]
[1749756906482,0.73123,2734.3,2734.2,3.93904]
[1749756906683,0.73123,2734.4,2734.3,0.73122]
[1749756907076,0.73123,2734.3,2734.2,3.93904]
[1749756907476,2.00572,2734.4,2734.3,0.73123]
[1749756907678,6.70919,2734.5,2734.4,0.73121]
[1749756908179,0.73123,2734.4,2734.3,0.73121]
[1749756908578,6.7092,2734.5,2734.4,0.73121]
[1749756908780,5.978,2734.5,2734.4,0.73121]
[1749756909482,0.73117,2734.6,2734.5,0.73118]
[1749756909779,6.71017,2734.6,2734.5,0.73118]
[1749756909987,5.979,2734.6,2734.5,0.73118]
[1749756910186,0.73115,2734.6,2734.5,0.73118]
[1749756910484,6.71015,2734.6,2734.5,0.73118]
[1749756910688,0.73115,2734.6,2734.5,0.73118]
[1749756910979,6.71115,2734.6,2734.5,0.73118]
[1749756911183,0.73115,2734.6,2734.5,0.73118]
[1749756911384,3.93895,2734.7,2734.6,0.73115]
[1749756911883,3.2078,2734.7,2734.6,0.73115]
[1749756913179,3.93893,2734.7,2734.6,0.73115]
[1749756913978,3.2078,2734.7,2734.6,0.73115]
[1749756914584,0.73104,2735.1,2735.0,0.731]
[1749756914784,0.97178386,2735.4,2735.3,0.73097]
[1749756914983,3.06372,2736.2,2735.7,0.73084]
[1749756915184,0.73088,2735.7,2735.6,0.73087]
[1749756915485,0.73082,2735.9,2735.8,0.73081]
[1749756916682,0.73085,2735.8,2735.7,0.73085]
[1749756916885,3.2078,2736.0,2735.6,0.00548386]
[1749756916886,0.73082,2735.9,2735.8,0.73082]
[1749756917190,1.29598386,2736.1,2736.0,0.73078]
[1749756917191,0.73624386,2736.1,2736.0,0.73078]
[1749756917392,0.73624386,2736.1,2735.6,0.00548386]
[1749756917393,0.73086,2735.7,2735.6,0.00548386]
[1749756920387,1.82737,2735.4,2734.8,0.6385]
[1749756920586,0.73114,2734.7,2734.6,0.73113]
[1749756921187,1.82771,2734.9,2734.4,1.2779]
[1749756921392,0.73118,2734.5,2734.4,0.73119]
[1749756921591,0.73117,2734.6,2734.5,0.73117]
[1749756921986,0.00548386,2734.7,2734.6,0.73115]
[1749756922685,0.73119,2734.5,2734.4,0.73117]
[1749756923094,0.00548386,2734.7,2734.2,3.10601]
[1749756923287,0.73664386,2734.7,2734.6,0.73115]
[1749756923593,0.73117,2734.6,2734.5,0.73116]
[1749756923893,0.73663386,2734.7,2734.6,0.73115]
[1749756924393,0.73116,2734.6,2734.5,0.73117]
[1749756926490,5.98248386,2734.7,2734.3,1.2741]
[1749756926698,0.73126,2734.2,2734.1,1.37597]
[1749756927089,0.73125,2734.3,2734.2,0.73122]
[1749756927396,6.70921,2734.5,2734.4,0.73119]
[1749756928995,5.978,2734.5,2734.2,1.2325]
[1749756929196,0.73123,2734.3,2734.2,1.96375]
[1749756929391,0.73126,2734.2,2734.1,0.6447]
[1749756929596,0.73133,2734.1,2734.0,0.73129]
[1749756930191,1.82831,2734.0,2733.4,4.4524]
[1749756930491,1.82837,2733.9,2733.4,2.5202]
[1749756930694,0.73144,2733.6,2733.5,0.73142]
[1749756932504,5.979,2733.9,2733.5,1.82861]
[1749756932806,0.73137,2733.8,2733.7,0.73137]
[1749756933490,5.979,2733.9,2733.5,1.2298]
[1749756933695,0.7315,2733.4,2733.3,0.73148]
[1749756934192,0.73147,2733.5,2733.4,0.73144]
[1749756934393,0.73149,2733.4,2733.3,0.73147]
[1749756934592,0.73146,2733.5,2733.4,0.73144]
[1749756936211,0.73153,2733.2,2733.1,0.73154]
[1749756936504,0.73163,2733.0,2732.9,0.7316]
[1749756936699,0.73163,2733.0,2732.6,1.82917]
[1749756936700,0.73157,2733.1,2733.0,0.73155]
[1749756936907,0.00548386,2733.2,2733.1,0.73155]
[1749756937907,0.00548386,2733.2,2733.1,1.36345]
[1749756938908,0.73701386,2733.2,2733.1,1.36345]
[1749756939398,0.00548386,2733.2,2733.1,1.36345]
[1749756940404,0.73701386,2733.2,2733.1,0.6319]
[1749756940616,0.00548386,2733.2,2732.9,0.73159]
[1749756940811,0.73161,2732.9,2732.8,0.73161]
[1749756941011,0.7316,2733.0,2732.9,0.73156]
[1749756944318,0.73165,2732.9,2732.8,0.73161]
[1749756946214,0.73161,2733.0,2732.9,0.73157]
[1749756946617,0.00548386,2733.2,2733.1,0.73155]
[1749756946916,0.00548386,2733.2,2733.1,3.93935]
[1749756947423,0.73152,2733.3,2733.2,0.73149]
[1749756947712,0.73149,2733.4,2733.3,0.73146]
[1749756948310,0.73692386,2733.6,2733.5,0.73141]
[1749756950019,0.73692386,2733.6,2733.2,3.78462]
[1749756950020,0.73149,2733.5,2733.4,0.73145]
[1749756950414,0.7315,2733.4,2733.3,0.73148]
[1749756950620,0.73153,2733.2,2733.1,0.00548386]
[1749756951212,3.22223,2733.2,2733.1,0.00548386]
[1749756952313,1.95963,2733.2,2733.1,0.00548386]
[1749756954616,3.17793,2733.2,2733.1,0.00548386]
[1749756962528,0.73174,2732.4,2732.3,3.2078]
[1749756962734,0.73182,2732.1,2731.7,6.23722775]
[1749756962921,0.73182,2732.1,2731.7,2.63871]
[1749756963118,3.93962,2732.1,2731.7,1.9068]
[1749756963426,3.2078,2732.5,2732.0,0.89924]
[1749756963732,3.2078,2732.5,2732.4,0.73174]
[1749756963733,0.73171,2732.5,2732.4,0.73174]
[1749756964222,1.32629,2732.7,2732.6,0.73169]
[1749756964427,1.32629,2732.7,2732.3,1.82943]
[1749756964428,0.73172,2732.6,2732.5,0.73169]
[1749756965218,9.8298,2733.1,2732.7,0.73166]
[1749756965427,9.8298,2733.1,2732.9,0.73159]
[1749756965428,0.73161,2733.0,2732.9,0.73159]
[1749756966131,9.8298,2733.1,2732.9,0.73159]
[1749756966132,3.2078,2733.1,2732.9,0.73159]
[1749756966332,0.73161,2733.0,2732.9,0.73159]
[1749756966725,3.93937,2733.1,2733.0,0.73158]
[1749756967124,3.93937,2733.1,2732.7,3.13344]
[1749756967426,3.93937,2733.1,2733.0,0.73158]
[1749756968124,3.2078,2733.1,2733.0,0.73158]
[1749756968323,3.2078,2733.1,2732.9,0.73159]
[1749756968521,3.2078,2733.1,2732.6,3.2078]
[1749756968824,0.73164,2732.9,2732.8,0.7316]
[1749756969223,3.2078,2733.1,2733.0,0.73158]
[1749756969423,3.93935,2733.1,2733.0,0.73158]
[1749756971634,0.73162,2732.9,2732.8,0.7316]
[1749756971832,0.73162,2732.9,2732.8,2.0356]
[1749756972833,3.2078,2733.1,2733.0,0.73158]
[1749756972834,3.93936,2733.1,2733.0,0.73158]
[1749756973436,0.73161,2733.0,2732.9,0.73159]
[1749756973935,0.73161,2732.9,2732.8,2.03561]
[1749756974634,0.73159,2733.0,2732.9,0.73158]
[1749756974936,3.2078,2733.1,2733.0,0.73158]
[1749756976436,0.7315,2733.3,2733.2,0.73153]
[1749756977733,0.7315,2733.3,2732.7,7.80715]
[1749756977734,1.82876,2733.3,2732.7,7.80715]
[1749756977940,0.73161,2733.0,2732.9,0.73157]
[1749756978135,1.82882,2733.2,2732.6,3.2078]
[1749756978136,1.82892,2733.1,2732.6,3.2078]
[1749756978338,0.7316,2733.0,2732.9,0.73158]
[1749756978837,0.73156,2733.1,2733.0,0.73155]
[1749756979240,3.93934,2733.2,2733.1,0.73155]
[1749756979442,3.2078,2733.2,2733.1,0.73155]
[1749756979738,0.73158,2733.1,2733.0,0.73156]
[1749756979939,0.73158,2733.0,2732.9,0.0620172]
[1749756980131,0.73166,2732.8,2732.7,0.73163]
[1749756980331,0.73169,2732.7,2732.6,0.73167]
[1749756980530,0.73169,2732.6,2732.5,0.73169]
[1749756981240,6.27043,2732.9,2732.2,9.62577]
[1749756981241,0.73174,2732.5,2732.4,0.73172]
[1749756982135,0.7317,2732.6,2732.5,0.73168]
[1749756982838,3.9395,2732.6,2732.5,0.73168]
[1749756983035,3.2078,2732.6,2732.5,0.73168]
[1749756983941,0.73158,2733.1,2733.0,0.73156]
[1749756984237,3.2078,2733.2,2733.0,0.73156]
[1749756984238,3.93934,2733.2,2733.1,0.73155]
[1749756984535,0.73153,2733.2,2733.1,0.73155]
[1749756984742,1.38092,2733.3,2733.2,0.73153]
[1749756986629,0.6494,2733.3,2733.2,0.73153]
[1749756986835,0.00548386,2733.6,2733.3,0.73148]
[1749756987036,3.9393,2733.4,2733.3,0.73148]
[1749756987741,0.73146,2733.5,2733.4,0.73145]
[1749756988130,0.7315,2733.4,2733.3,0.73149]
[1749756989644,0.65928386,2733.6,2733.2,1.82881]
[1749756989845,0.7315,2733.4,2733.3,0.73148]
[1749756990441,1.39072386,2733.6,2733.5,0.73145]
[1749756991442,0.73149,2733.4,2733.3,0.73146]
[1749756992042,0.73152,2733.3,2733.2,0.73149]
[1749756992544,0.65928386,2733.6,2733.1,1.82889]
[1749756992744,0.7315,2733.4,2733.3,0.73148]
[1749756993940,0.73156,2733.2,2733.1,0.73152]
[1749756994941,0.73153,2733.3,2733.2,0.7315]
[1749756995646,0.73157,2733.2,2733.1,0.73154]
[1749756996450,0.73152,2733.3,2733.2,0.7315]
[1749756997143,0.73152,2733.3,2732.9,3.05122]
[1749756997144,0.73157,2733.2,2733.1,0.73153]
[1749756997948,3.93928,2733.4,2733.3,0.7315]
[1749756999058,0.65928386,2733.6,2733.5,0.73145]
[1749756999348,0.00548386,2733.6,2733.5,0.73145]
[1749757000048,0.00548386,2733.6,2733.5,1.98255]
[1749757002150,1.83404386,2733.6,2733.0,8.63522775]
[1749757002345,0.73149,2733.5,2733.4,0.73145]
[1749757003048,0.7315,2733.4,2733.3,0.73147]
[1749757004356,0.73162,2733.0,2732.9,0.73159]
[1749757005448,1.2424,2733.2,2733.0,0.73155]
[1749757005449,0.73157,2733.1,2733.0,0.73155]
[1749757007352,0.73163,2732.8,2732.7,3.93945]
[1749757007559,0.73163,2732.9,2732.8,0.7316]
[1749757008560,0.73167,2732.8,2732.7,0.73164]
[1749757008855,0.73169,2732.6,2732.5,0.73171]
[1749757009653,0.73166,2732.8,2732.7,0.73162]
[1749757010859,0.7317,2732.7,2732.6,0.73166]
[1749757011558,0.73165,2732.8,2732.7,0.73162]
[1749757011961,0.7317,2732.7,2732.6,0.73167]
[1749757012460,0.73165,2732.8,2732.7,0.73162]
[1749757012663,0.73169,2732.7,2732.6,0.73166]
[1749757013258,0.73165,2732.8,2732.7,0.73162]
[1749757014256,0.73177,2732.4,2732.3,0.73174]
[1749757014462,0.73177,2732.3,2732.2,3.2078]
[1749757015366,0.73182,2732.1,2732.0,0.16739]
[1749757015666,6.70782,2732.1,2732.0,0.16739]
[1749757016366,6.70782,2732.1,2732.0,0.89924]
[1749757016567,6.70782,2732.1,2732.0,0.16739]
[1749757017265,6.99534272,2732.1,2732.0,0.16739]
[1749757017467,10.20314272,2732.1,2732.0,0.16739]
[1749757018167,11.86714272,2732.1,2732.0,0.16739]
[1749757018969,11.57962,2732.1,2732.0,0.89924]
[1749757019776,11.87306827,2732.1,2732.0,0.16739]
[1749757020774,1.82963,2732.0,2731.2,3.2078]
[1749757020974,3.93984,2731.3,2731.2,0.73205]
[1749757021174,3.2078,2731.3,2731.2,0.73205]
[1749757021578,3.93983,2731.3,2731.2,0.73205]
[1749757022079,3.2078,2731.3,2731.2,0.73205]
[1749757022278,3.2078,2731.3,2731.0,0.73209]
[1749757022473,1.83018,2731.2,2730.7,0.73217]
[1749757022675,0.73219,2730.8,2730.7,0.73219]
[1749757022974,0.73219,2730.8,2730.7,0.73218]
[1749757023374,0.7322,2730.7,2730.6,1.2321]
[1749757023681,0.7322,2730.7,2730.3,9.1848]
[1749757023682,0.73228,2730.4,2730.3,6.70928]
[1749757024279,0.73233,2730.3,2730.2,0.73231]
[1749757024575,0.73236,2730.1,2730.0,1.35996]
[1749757024781,0.73236,2730.1,2730.0,0.6276]
[1749757025071,1.83083,2730.2,2729.7,0.6033]
[1749757025272,5.978,2730.1,2729.7,0.6033]
[1749757025464,5.978,2730.1,2729.9,0.7324]
[1749757025670,6.71037,2730.1,2729.9,0.73239]
[1749757025872,0.73238,2730.0,2729.8,1.2442]
[1749757026073,1.83097,2730.0,2729.6,3.2078]
[1749757026274,1.83111,2729.8,2728.4,3.2078]
[1749757026471,3.2078,2729.0,2728.7,0.73272]
[1749757026672,3.2078,2729.0,2728.8,0.73269]
[1749757026881,3.2078,2729.0,2728.9,0.73268]
[1749757027075,0.0054941,2729.1,2729.0,0.73265]
[1749757027573,0.0054941,2729.1,2729.0,5.73265]
[1749757027778,3.8625,2730.0,2729.4,1.83136]
[1749757027977,3.94018,2730.0,2729.8,0.73243]
[1749757028177,3.2078,2730.0,2729.5,1.8746]
[1749757028480,3.2078,2730.0,2729.9,0.73241]
[1749757028982,3.9402,2730.0,2729.8,0.73243]
[1749757029174,3.2078,2730.0,2729.9,0.73241]
[1749757031278,0.0054941,2730.2,2729.8,1.1945]
[1749757031480,0.0054941,2730.2,2730.1,0.73236]
[1749757031883,0.0054941,2730.2,2730.1,1.92686]
[1749757032478,0.6518,2730.5,2730.4,0.73228]
[1749757033479,9.1888,2730.6,2730.5,0.73225]
[1749757033882,3.2078,2730.6,2730.5,0.73225]
[1749757034384,3.94002,2730.6,2730.5,0.73225]
[1749757034782,3.2078,2730.6,2730.5,0.73225]
[1749757037782,3.94002,2730.6,2730.5,0.73225]
[1749757038989,3.2078,2730.6,2730.5,0.73225]
[1749757039486,0.73227,2730.5,2730.4,0.73226]
[1749757039886,3.94004,2730.6,2730.5,0.73225]
[1749757040084,3.94004,2730.6,2730.5,0.7942672]
[1749757040686,3.2078,2730.6,2730.5,0.7942672]
[1749757042081,3.6472,2730.6,2730.5,0.7942672]
[1749757042685,4.37942,2730.6,2730.5,0.7942672]
[1749757042983,3.6472,2730.6,2730.5,0.7942672]
[1749757044291,0.6098,2731.1,2730.5,0.7942672]
[1749757044292,3.2078,2731.2,2730.5,0.0620172]
[1749757044489,3.2078,2731.2,2731.1,0.73209]
[1749757044790,3.93986,2731.2,2731.1,0.73209]
[1749757044980,3.2078,2731.2,2731.1,0.73209]
[1749757045183,3.93986,2731.2,2731.1,0.73209]
[1749757046084,3.2078,2731.2,2731.1,0.73209]
[1749757046291,0.7375141,2731.4,2731.3,0.73203]
[1749757046787,0.0054941,2731.4,2731.3,0.73203]
[1749757046990,0.7375041,2731.4,2731.3,0.73203]
[1749757047386,0.0054941,2731.4,2731.3,0.73203]
[1749757051489,0.73206,2731.2,2731.1,0.0054941]
[1749757051687,3.93986,2731.2,2731.1,0.0054941]
[1749757052090,5.15486,2731.2,2731.1,0.0054941]
[1749757055297,5.15486,2731.2,2731.1,0.0675113]
[1749757062601,0.7323,2730.4,2730.3,0.73229]
[1749757062800,0.73224,2730.7,2730.6,0.7322]
[1749757063304,0.73227,2730.5,2730.4,0.73224]
[1749757064103,3.8498,2730.8,2730.7,0.7322]
[1749757064305,4.58197,2730.8,2730.7,0.7322]
[1749757064802,0.73224,2730.7,2730.6,0.73221]
[1749757065206,4.58199,2730.8,2730.7,0.7322]
[1749757065407,4.58199,2730.8,2730.5,3.0599]
[1749757065408,0.73222,2730.7,2730.6,0.7322]
[1749757067607,4.58198,2730.8,2730.7,0.7322]
[1749757068105,0.73222,2730.7,2730.6,0.73221]
[1749757069511,3.94,2730.8,2730.7,0.7322]
[1749757070107,3.94,2730.8,2730.7,1.2427]
[1749757071113,3.94,2730.8,2730.7,1.9749]
[1749757071614,3.94,2730.8,2730.7,0.7322]
[1749757071910,0.7322,2730.7,2730.6,0.7942172]
[1749757074415,3.93999,2730.8,2730.7,0.7322]
[1749757075515,3.2078,2730.8,2730.7,0.7322]
[1749757076415,3.93997,2730.8,2730.7,0.7322]
[1749757080215,0.7322,2730.7,2730.6,2.97249405]
[1749757080410,1.3575,2730.7,2730.6,0.0620172]
[1749757080719,1.83072,2730.4,2729.6,5.52831775]
[1749757080917,0.73246,2729.7,2729.6,1.36877]
[1749757081210,0.73246,2729.7,2729.5,6.80631775]
[1749757081211,0.73249,2729.6,2729.5,6.80631775]
[1749757081410,0.73257,2729.3,2729.2,4.33109775]
[1749757081612,0.7326,2729.2,2729.1,5.08629113]
[1749757081807,0.73263,2729.1,2729.0,0.0054941]
[1749757082417,0.73263,2729.1,2729.0,0.7381441]
[1749757082613,3.2078,2729.4,2729.0,0.0054941]
[1749757082818,0.7326,2729.2,2729.1,0.7326]
[1749757083023,3.2078,2729.4,2729.0,1.2082941]
[1749757083217,3.94043,2729.1,2729.0,0.0054941]
[1749757084214,0.6517,2729.3,2729.0,0.0054941]
[1749757084418,3.94042,2729.1,2729.0,0.0054941]
[1749757084813,3.94042,2729.1,2729.0,0.0675113]
[1749757086220,9.91942,2729.1,2729.0,0.0675113]
[1749757087223,14.1868,2729.1,2728.1,3.2078]
[1749757087414,0.73285,2728.3,2728.2,0.73286]
[1749757087825,0.73284,2728.3,2728.2,0.73285]
[1749757088117,3.2078,2728.6,2728.5,0.73279]
[1749757088311,0.73276,2728.6,2728.5,0.73279]
[1749757088512,5.98,2728.8,2728.3,0.6435]
[1749757088712,0.73275,2728.7,2728.6,0.73275]
[1749757088919,25.9118,2728.9,2728.4,1.2379]
[1749757088920,3.94049,2728.9,2728.8,0.73271]
[1749757089218,3.94049,2728.9,2728.6,0.73276]
[1749757089219,0.73274,2728.7,2728.6,0.73276]
[1749757089611,0.73277,2728.6,2728.5,0.73276]
[1749757090016,0.73275,2728.7,2728.6,0.73273]
[1749757090212,0.73279,2728.5,2728.4,1.9707]
[1749757090417,0.73279,2728.5,2728.4,0.7328]
[1749757091024,0.73281,2728.4,2728.3,1.37631]
[1749757091320,1.83181,2728.8,2728.1,3.2078]
[1749757091321,3.2078,2728.6,2728.1,3.2078]
[1749757091525,0.73285,2728.3,2728.2,0.73284]
[1749757091826,0.73287,2728.2,2728.1,3.94068]
[1749757092021,6.71281,2728.5,2728.4,0.73281]
[1749757092221,7.812,2728.5,2728.0,1.2406]
[1749757092426,0.73288,2728.2,2728.1,0.73286]
[1749757092621,0.73286,2728.3,2728.2,0.73285]
[1749757092822,0.73289,2728.2,2728.1,0.73288]
[1749757093029,0.73284,2728.3,2728.2,0.73283]
[1749757093224,0.73284,2728.3,2727.4,3.2078]
[1749757093225,25.9138,2728.3,2727.4,3.2078]
[1749757093434,3.2078,2727.6,2727.1,1.83286]
[1749757093724,0.0054941,2728.1,2727.9,0.73294]
[1749757094116,0.0054941,2728.1,2727.8,0.73296]
[1749757094319,0.7384041,2728.1,2727.6,3.70516]
[1749757094520,0.73293,2728.0,2727.9,0.73293]
[1749757094725,0.7384041,2728.1,2728.0,0.73292]
[1749757095123,0.0054941,2728.1,2728.0,3.94072]
[1749757095323,0.0054941,2728.1,2728.0,8.94072]
[1749757095525,0.0054941,2728.1,2728.0,3.94072]
[1749757096123,0.0054941,2728.1,2728.0,5.18862]
[1749757096329,0.0054941,2728.1,2728.0,3.94072]
[1749757096832,3.2078,2728.8,2728.7,0.73273]
[1749757097243,3.2078,2729.2,2728.8,0.73271]
[1749757097542,3.2078,2729.2,2728.9,0.73266]
[1749757097743,0.0054941,2729.3,2729.2,0.7326]
[1749757098048,0.0054941,2729.3,2729.2,11.7846]
[1749757098254,0.0054941,2729.3,2729.2,3.2487]
[1749757099136,0.7380641,2729.3,2729.2,3.2487]
[1749757099339,0.0054941,2729.3,2729.2,3.2487]
[1749757100143,0.7380641,2729.3,2729.2,0.7326]
[1749757100344,0.0054941,2729.3,2729.2,0.7326]
[1749757100549,0.7380641,2729.3,2729.2,0.7326]
[1749757100842,0.0054941,2729.3,2729.2,0.7326]